bitfinex-derivatives/quotes_SOLF0:USTF0_20241107
["timestamp","ask_amount","ask_price","bid_price","bid_amount"]
[1730964280152,2.6531,188.37,188.32,6.53287639]
[1730964281454,2.6534,188.36,188.18,0.29643]
[1730964281651,9.18627639,188.36,188.3,6.53287639]
[1730964281853,9.18627639,188.36,188.29,5.5542]
[1730964282053,9.18627639,188.36,188.3,6.53287639]
[1730964282653,6.53287639,188.36,188.3,6.53287639]
[1730964282860,2.6535,188.35,188.3,6.53287639]
[1730964285059,2.6535,188.35,188.29,2.6542]
[1730964285259,2.6535,188.35,188.31,6.53287639]
[1730964286162,2.6535,188.35,188.3,6.53287639]
[1730964286562,2.5953,188.39,188.3,6.53287639]
[1730964286769,2.5953,188.39,188.32,6.53287639]
[1730964287168,6.53287639,188.38,188.32,6.53287639]
[1730964288269,2.6533,188.36,188.32,6.53287639]
[1730964288571,6.53287639,188.38,188.32,6.53287639]
[1730964289875,6.53287639,188.36,188.32,6.53287639]
[1730964290075,6.53287639,188.36,188.3,6.53287639]
[1730964290486,2.6535,188.35,188.3,6.53287639]
[1730964291076,9.18637639,188.35,188.3,6.53287639]
[1730964292370,2.6536,188.34,188.3,6.53287639]
[1730964292577,6.53287639,188.33,188.28,2.9]
[1730964293871,9.18657639,188.33,188.28,2.9]
[1730964294474,9.18657639,188.33,188.24,0.33225]
[1730964294475,6.53287639,188.33,188.24,0.33225]
[1730964294673,6.53287639,188.31,188.26,6.53287639]
[1730964295079,9.18687639,188.31,188.26,6.53287639]
[1730964296173,6.53287639,188.31,188.24,3.23225]
[1730964296474,6.53287639,188.31,188.25,6.53287639]
[1730964296668,6.53287639,188.31,188.24,3.23225]
[1730964296875,6.53287639,188.31,188.26,6.53287639]
[1730964297071,9.18697639,188.31,188.26,6.53287639]
[1730964297870,17.48650208,188.32,188.26,6.53287639]
[1730964298177,10.39517639,188.32,188.26,9.18757639]
[1730964298383,10.39517639,188.32,188.27,6.53287639]
[1730964299084,6.53287639,188.29,188.24,6.86512639]
[1730964299282,6.53287639,188.29,188.24,0.33225]
[1730964299589,6.53287639,188.28,188.24,0.33225]
[1730964299885,2.5727,188.31,188.24,0.33225]
[1730964299886,6.53287639,188.25,188.24,0.33225]
[1730964302385,7.13218938,188.3,188.24,0.33225]
[1730964302386,6.53287639,188.27,188.24,0.33225]
[1730964303185,9.43287639,188.29,188.24,0.33225]
[1730964303379,9.43287639,188.29,188.23,9.18787639]
[1730964303775,6.53287639,188.29,188.23,9.18787639]
[1730964304886,6.53287639,188.29,188.23,6.53287639]
[1730964305086,6.53287639,188.29,188.24,2.6549]
[1730964306287,5.4727,188.31,188.26,2.6546]
[1730964306483,6.53287639,188.29,188.26,2.6546]
[1730964307494,6.53287639,188.29,188.25,2.6548]
[1730964307794,6.53287639,188.28,188.25,2.6548]
[1730964308491,6.53287639,188.28,188.22,6.53287639]
[1730964308696,6.53287639,188.31,188.24,6.53287639]
[1730964308996,6.53287639,188.31,188.25,6.53287639]
[1730964310192,1.2085,188.32,188.27,2.6545]
[1730964310389,7.74137639,188.32,188.27,2.6545]
[1730964311090,7.13218938,188.35,188.29,2.6542]
[1730964311395,6.53287639,188.33,188.29,2.6542]
[1730964312495,6.53287639,188.33,188.27,6.53287639]
[1730964313491,6.53287639,188.33,188.28,2.6543]
[1730964313689,6.53287639,188.34,188.27,6.53287639]
[1730964314789,6.53287639,188.34,188.29,2.6542]
[1730964317702,9.18607639,188.37,188.31,9.18677639]
[1730964317907,6.53287639,188.37,188.31,9.18677639]
[1730964320706,6.53287639,188.37,188.31,6.53287639]
[1730964320900,6.53287639,188.37,188.33,2.6536]
[1730964321702,6.53287639,188.37,188.31,6.53287639]
[1730964321703,6.53287639,188.37,188.32,2.6538]
[1730964323307,6.53287639,188.37,188.31,9.18677639]
[1730964327197,6.53287639,188.36,188.31,9.18677639]
[1730964329700,6.53287639,188.34,188.29,2.6541]
[1730964329901,6.53287639,188.34,188.29,5.5541]
[1730964330506,6.53287639,188.34,188.29,2.9]
[1730964331301,6.53287639,188.34,188.29,5.5542]
[1730964335910,6.53287639,188.34,188.29,2.9]
[1730964336212,6.53287639,188.34,188.3,9.18687639]
[1730964336612,2.6531,188.37,188.31,6.53287639]
[1730964336809,6.53287639,188.38,188.31,9.18667639]
[1730964337115,9.18587639,188.38,188.31,9.18667639]
[1730964338109,6.53287639,188.36,188.31,9.18667639]
[1730964341523,1.2951,188.39,188.32,2.6537]
[1730964341823,6.53287639,188.36,188.32,2.6537]
[1730964344714,3.9479,188.39,188.33,2.6537]
[1730964344914,6.53287639,188.36,188.33,2.6537]
[1730964347915,6.53287639,188.36,188.32,2.6538]
[1730964349817,3.9479,188.39,188.32,2.6538]
[1730964350228,6.53287639,188.36,188.32,2.6538]
[1730964352921,3.9479,188.39,188.32,2.6538]
[1730964353124,6.53287639,188.37,188.32,2.6538]
[1730964357024,1.2951,188.39,188.34,2.6535]
[1730964357329,6.53287639,188.38,188.31,6.53287639]
[1730964357831,6.53287639,188.38,188.33,2.6536]
[1730964358032,1.2951,188.39,188.29,2.9]
[1730964358235,6.53287639,188.37,188.32,2.6537]
[1730964359533,6.53287639,188.37,188.31,6.53287639]
[1730964359725,6.53287639,188.35,188.31,2.6539]
[1730964360533,6.53287639,188.35,188.3,5.5341]
[1730964362335,2.6532,188.37,188.3,5.5341]
[1730964362537,6.53287639,188.36,188.3,5.5341]
[1730964364532,6.53287639,188.36,188.31,2.6539]
[1730964370039,9.18617639,188.36,188.3,5.534]
[1730964370948,6.53287639,188.34,188.3,2.88]
[1730964371943,6.53287639,188.34,188.29,2.6542]
[1730964373847,1.2669,188.33,188.28,9.18717639]
[1730964374234,7.79977639,188.33,188.28,6.53287639]
[1730964374438,7.79977639,188.33,188.29,2.6542]
[1730964375954,1.2669,188.33,188.29,2.6542]
[1730964376543,1.2669,188.33,188.29,9.18707639]
[1730964381853,7.79977639,188.33,188.29,9.18707639]
[1730964382758,7.79977639,188.33,188.28,2.88]
[1730964382956,7.79977639,188.33,188.28,9.41287639]
[1730964383758,1.2669,188.33,188.28,12.06727639]
[1730964384652,1.2669,188.33,188.28,5.5344]
[1730964384848,6.53287639,188.32,188.28,2.88]
[1730964385049,6.53287639,188.3,188.21,1.57166]
[1730964385354,6.53287639,188.3,188.25,9.41287639]
[1730964386359,6.53287639,188.3,188.25,12.06767639]
[1730964386663,6.53287639,188.3,188.25,9.18767639]
[1730964387062,2.6539,188.32,188.25,9.18767639]
[1730964387270,6.53287639,188.3,188.25,9.18767639]
[1730964389869,6.53287639,188.3,188.25,2.6548]
[1730964392160,6.53287639,188.28,188.24,2.88]
[1730964395671,6.53287639,188.28,188.23,2.655]
[1730964397672,6.53287639,188.28,188.22,6.53287639]
[1730964397973,6.53287639,188.28,188.22,9.18807639]
[1730964398274,6.53287639,188.27,188.22,6.53287639]
[1730964398475,6.53287639,188.27,188.22,9.18807639]
[1730964398665,6.53287639,188.27,188.22,2.6552]
[1730964399090,6.53287639,188.24,188.19,2.6555]
[1730964399267,6.53287639,188.24,188.18,9.41287639]
[1730964400168,6.53287639,188.24,188.21,2.6554]
[1730964401176,6.53287639,188.25,188.21,2.6554]
[1730964401772,7.13218938,188.28,188.22,2.6551]
[1730964401970,6.53287639,188.27,188.22,2.6551]
[1730964404172,6.53287639,188.25,188.2,2.6555]
[1730964404376,6.53287639,188.25,188.2,9.18837639]
[1730964404780,6.53287639,188.25,188.21,2.6553]
[1730964406686,6.53287639,188.25,188.2,9.18837639]
[1730964406983,6.53287639,188.25,188.2,6.53287639]
[1730964407182,7.74027639,188.27,188.22,2.6552]
[1730964407379,1.2074,188.27,188.22,2.6552]
[1730964407877,1.2074,188.27,188.23,6.53287639]
[1730964408077,6.53287639,188.26,188.2,2.6554]
[1730964408277,6.53287639,188.26,188.2,9.18827639]
[1730964408675,7.13218938,188.32,188.18,2.88]
[1730964408987,3.898,188.37,188.27,6.53287639]
[1730964409186,6.53287639,188.33,188.27,9.41287639]
[1730964410385,6.53287639,188.33,188.27,12.06737639]
[1730964411882,6.53287639,188.32,188.27,12.06737639]
[1730964412287,2.6535,188.34,188.27,12.06737639]
[1730964412488,6.53287639,188.32,188.27,12.06737639]
[1730964413685,6.53287639,188.32,188.27,5.5345]
[1730964418094,6.53287639,188.32,188.27,2.88]
[1730964419489,6.53287639,188.3,188.27,2.88]
[1730964420184,6.53287639,188.29,188.14,17.4982]
[1730964420385,6.53287639,188.29,188.15,2.88]
[1730964420591,6.53287639,188.29,188.16,2.88]
[1730964420893,6.53287639,188.29,188.23,6.53287639]
[1730964423086,6.53287639,188.27,188.23,6.53287639]
[1730964423394,6.53287639,188.27,188.22,2.88]
[1730964434389,2.6542,188.29,188.22,2.88]
[1730964434595,6.53287639,188.28,188.22,2.88]
[1730964436098,9.18737639,188.28,188.22,2.88]
[1730964438099,6.53287639,188.26,188.22,2.88]
[1730964439001,6.53287639,188.24,188.16,2.6559]
[1730964439210,6.53287639,188.24,188.18,6.53287639]
[1730964440708,6.53287639,188.24,188.18,9.41287639]
[1730964440897,6.53287639,188.24,188.18,5.5357]
[1730964441099,6.53287639,188.24,188.18,12.06857639]
[1730964445610,6.53287639,188.23,188.18,2.88]
[1730964445815,7.76327639,188.23,188.17,6.53287639]
[1730964446211,7.76327639,188.23,188.16,5.516]
[1730964446420,7.76327639,188.23,188.17,6.53287639]
[1730964447412,6.53287639,188.21,188.16,2.86]
[1730964447616,6.53287639,188.21,188.15,5.79769]
[1730964448000,6.53287639,188.21,188.15,0.28149]
[1730964448001,6.53287639,188.19,188.15,0.28149]
[1730964449006,6.53287639,188.18,188.15,0.28149]
[1730964449626,6.53287639,188.16,188.15,0.28149]
[1730964451522,1.2799,188.17,188.15,0.28149]
[1730964452120,1.2799,188.17,188.11,2.6567]
[1730964452423,2.86,188.24,188.1,2.86]
[1730964452631,3.9442,188.23,188.1,2.86]
[1730964452820,6.53287639,188.19,188.1,2.86]
[1730964453426,6.53287639,188.19,188.12,6.53287639]
[1730964454233,6.53287639,188.18,188.12,6.53287639]
[1730964454831,6.53287639,188.18,188.12,9.18947639]
[1730964455032,6.53287639,188.18,188.12,2.6566]
[1730964455232,6.53287639,188.18,188.12,9.18947639]
[1730964455531,6.53287639,188.18,188.12,2.6566]
[1730964457233,3.9442,188.23,188.13,6.53287639]
[1730964457530,6.53287639,188.2,188.13,6.53287639]
[1730964458439,6.53287639,188.2,188.14,2.6563]
[1730964460237,6.53287639,188.2,188.13,9.18937639]
[1730964462743,6.53287639,188.19,188.13,9.18937639]
[1730964463039,3.9442,188.23,188.15,6.53287639]
[1730964463230,3.9442,188.23,188.16,6.53287639]
[1730964463433,6.53287639,188.22,188.16,6.53287639]
[1730964463844,2.4089,188.32,188.15,2.86]
[1730964464138,6.53287639,188.25,188.18,6.53287639]
[1730964464931,6.53287639,188.25,188.2,2.6555]
[1730964465136,6.53287639,188.25,188.2,5.5155]
[1730964465940,6.53287639,188.24,188.2,5.5155]
[1730964467135,6.53287639,188.24,188.2,2.86]
[1730964468250,2.6546,188.27,188.2,2.86]
[1730964468459,6.53287639,188.24,188.2,2.86]
[1730964470438,6.53287639,188.21,188.15,2.86]
[1730964470638,6.53287639,188.21,188.15,9.39287639]
[1730964470844,6.53287639,188.21,188.15,2.86]
[1730964471043,6.53287639,188.21,188.15,9.39287639]
[1730964471643,6.53287639,188.21,188.16,2.6559]
[1730964473139,6.53287639,188.23,188.16,2.6559]
[1730964474050,6.53287639,188.23,188.17,6.53287639]
[1730964476750,6.53287639,188.23,188.17,9.18877639]
[1730964477146,6.53287639,188.23,188.17,2.6559]
[1730964479758,6.53287639,188.23,188.18,6.53287639]
[1730964479965,6.53287639,188.23,188.15,2.86]
[1730964480256,6.53287639,188.23,188.18,6.53287639]
[1730964480658,6.53287639,188.23,188.17,2.6559]
[1730964480957,6.53287639,188.23,188.18,6.53287639]
[1730964481160,5.1222,188.25,188.18,6.53287639]
[1730964481355,1.2285,188.26,188.15,2.86]
[1730964481557,1.2285,188.26,188.2,6.53287639]
[1730964481558,7.76137639,188.26,188.2,6.53287639]
[1730964481757,7.76137639,188.26,188.2,12.04827639]
[1730964482061,7.76137639,188.26,188.2,9.39287639]
[1730964482257,1.2285,188.26,188.2,9.39287639]
[1730964482463,1.2285,188.26,188.21,2.6554]
[1730964484461,1.2285,188.26,188.2,9.39287639]
[1730964484659,1.2285,188.26,188.2,12.04827639]
[1730964485354,9.18767639,188.25,188.2,2.86]
[1730964485559,6.53287639,188.23,188.2,2.86]
[1730964487656,6.53287639,188.2,188.13,0.26655]
[1730964487855,6.53287639,188.2,188.14,9.39287639]
[1730964488064,6.53287639,188.2,188.14,6.53287639]
[1730964488262,6.53287639,188.2,188.15,5.5162]
[1730964488668,6.53287639,188.2,188.15,2.6562]
[1730964488965,6.53287639,188.21,188.15,5.5162]
[1730964489364,6.53287639,188.21,188.15,2.86]
[1730964489565,6.53287639,188.2,188.15,2.86]
[1730964496261,6.53287639,188.2,188.15,5.5161]
[1730964496566,6.53287639,188.2,188.15,2.86]
[1730964497766,2.655,188.24,188.15,2.86]
[1730964498070,6.53287639,188.22,188.17,6.53287639]
[1730964498467,6.53287639,188.22,188.15,2.86]
[1730964498675,6.53287639,188.22,188.16,6.53287639]
[1730964502168,9.18797639,188.23,188.16,6.53287639]
[1730964503270,9.18797639,188.23,188.15,5.5161]
[1730964503471,9.18797639,188.23,188.17,6.53287639]
[1730964503868,9.05920099,188.23,188.17,6.53287639]
[1730964504270,1.2285,188.26,188.17,6.53287639]
[1730964504472,6.53287639,188.23,188.17,9.18877639]
[1730964504872,1.2285,188.26,188.19,6.53287639]
[1730964505069,1.2285,188.26,188.15,2.86]
[1730964505274,1.2285,188.26,188.22,6.53287639]
[1730964505470,1.2285,188.26,188.22,12.04807639]
[1730964505675,6.53287639,188.28,188.22,12.04807639]
[1730964506684,6.53287639,188.28,188.22,9.39287639]
[1730964507073,7.13056328,188.33,188.22,2.86]
[1730964507277,6.53287639,188.35,188.28,6.53287639]
[1730964507473,3.685,188.39,188.3,6.53287639]
[1730964507685,6.53287639,188.35,188.3,6.53287639]
[1730964508477,6.53287639,188.36,188.3,6.53287639]
[1730964508770,6.53287639,188.38,188.32,6.53287639]
[1730964510782,9.18587639,188.38,188.32,6.53287639]
[1730964511482,9.18587639,188.38,188.3,2.654]
[1730964511483,6.53287639,188.36,188.3,9.18687639]
[1730964512381,6.53287639,188.36,188.3,2.654]
[1730964512583,6.53287639,188.36,188.3,9.18687639]
[1730964512785,6.53287639,188.36,188.29,2.84]
[1730964512984,6.53287639,188.36,188.3,6.53287639]
[1730964516987,6.53287639,188.34,188.28,6.53287639]
[1730964517186,6.53287639,188.34,188.29,2.84]
[1730964519695,6.53287639,188.34,188.29,9.37287639]
[1730964523087,6.53287639,188.34,188.29,2.84]
[1730964523298,9.18647639,188.34,188.29,2.84]
[1730964525091,6.53287639,188.31,188.27,2.84]
[1730964526699,6.53287639,188.32,188.27,9.37287639]
[1730964529397,6.53287639,188.32,188.27,6.53287639]
[1730964529699,6.53287639,188.32,188.27,9.37287639]
[1730964532602,6.53287639,188.32,188.19,38.26]
[1730964532603,6.53287639,188.31,188.19,38.26]
[1730964532801,6.53287639,188.29,188.24,6.53287639]
[1730964533005,6.53287639,188.27,188.23,2.84]
[1730964533200,6.53287639,188.27,188.21,9.37287639]
[1730964533402,6.53287639,188.25,188.21,9.37287639]
[1730964534101,6.53287639,188.25,188.21,2.84]
[1730964540607,6.53287639,188.24,188.21,2.84]
[1730964542509,6.53287639,188.24,188.19,0.3024]
[1730964542910,6.53287639,188.22,188.19,0.3024]
[1730964543614,6.53287639,188.24,188.19,0.3024]
[1730964545809,6.53287639,188.24,188.19,6.83527639]
[1730964546609,7.78247639,188.28,188.23,6.53287639]
[1730964546815,7.78247639,188.28,188.23,9.37287639]
[1730964547011,7.09673437,188.31,188.24,9.18777639]
[1730964547214,6.53287639,188.32,188.26,6.53287639]
[1730964548218,6.53287639,188.32,188.23,2.84]
[1730964548411,7.72657639,188.32,188.24,6.53287639]
[1730964548810,7.72657639,188.32,188.25,2.6547]
[1730964549813,1.1937,188.32,188.26,9.18747639]
[1730964550407,1.1937,188.32,188.27,2.6545]
[1730964550617,1.1937,188.32,188.26,6.53287639]
[1730964551013,1.1937,188.32,188.27,2.6544]
[1730964551513,9.75574538,188.38,188.29,2.6542]
[1730964551713,6.53287639,188.35,188.29,2.6542]
[1730964552616,6.53287639,188.35,188.28,12.02717639]
[1730964558233,9.18627639,188.35,188.28,12.02727639]
[1730964558736,1.2034,188.38,188.31,6.53287639]
[1730964559237,7.73627639,188.38,188.31,6.53287639]
[1730964560738,7.73627639,188.38,188.31,9.18677639]
[1730964561629,1.2123,188.4,188.31,6.53287639]
[1730964561830,7.85357639,188.41,188.35,6.53287639]
[1730964562335,10.50627639,188.41,188.35,6.53287639]
[1730964563733,7.85357639,188.41,188.35,6.53287639]
[1730964563928,2.6527,188.4,188.35,6.53287639]
[1730964564339,6.53287639,188.39,188.35,6.53287639]
[1730964565042,9.18567639,188.39,188.34,2.84]
[1730964565236,10.49307639,188.39,188.34,2.84]
[1730964565742,6.53287639,188.37,188.34,2.84]
[1730964566633,1.3074,188.39,188.34,2.84]
[1730964566634,6.53287639,188.35,188.34,2.84]
[1730964567340,6.53287639,188.34,188.29,2.84]
[1730964567535,1.2203,188.38,188.29,2.84]
[1730964567536,6.53287639,188.32,188.29,2.84]
[1730964567839,6.53287639,188.32,188.28,2.84]
[1730964568034,6.53287639,188.32,188.26,2.84]
[1730964570544,6.53287639,188.3,188.26,2.84]
[1730964575443,6.53287639,188.3,188.26,5.4946]
[1730964575643,6.53287639,188.32,188.27,6.53287639]
[1730964576149,6.53287639,188.33,188.27,6.53287639]
[1730964576851,6.53287639,188.33,188.28,2.6543]
[1730964577748,6.53287639,188.33,188.27,2.6545]
[1730964577952,6.53287639,188.33,188.27,9.18737639]
[1730964578443,6.53287639,188.33,188.27,6.53287639]
[1730964578844,6.53287639,188.33,188.26,5.4947]
[1730964579246,6.53287639,188.31,188.26,9.37287639]
[1730964579950,6.53287639,188.31,188.27,2.84]
[1730964580749,6.53287639,188.29,188.27,2.84]
[1730964581845,6.53287639,188.3,188.27,2.84]
[1730964586150,6.53287639,188.31,188.27,2.84]
[1730964589162,2.4299,188.32,188.27,12.02727639]
[1730964590751,2.4299,188.32,188.27,2.84]
[1730964595753,6.53287639,188.31,188.27,2.84]
[1730964596758,6.53287639,188.31,188.25,6.53287639]
[1730964596961,6.53287639,188.31,188.25,9.37287639]
[1730964600367,6.53287639,188.29,188.24,2.82]
[1730964600555,6.53287639,188.28,188.24,2.82]
[1730964601665,6.53287639,188.28,188.22,6.53287639]
[1730964601872,6.53287639,188.28,188.23,2.82]
[1730964603561,6.53287639,188.28,188.22,9.18807639]
[1730964603767,6.53287639,188.28,188.22,6.53287639]
[1730964603968,6.53287639,188.26,188.14,1.32816907]
[1730964604161,6.53287639,188.23,188.17,6.53287639]
[1730964604364,6.53287639,188.23,188.18,2.6557]
[1730964604962,6.53287639,188.23,188.18,9.18857639]
[1730964606960,6.53287639,188.23,188.16,5.476]
[1730964607165,6.53287639,188.23,188.17,6.53287639]
[1730964608273,6.53287639,188.23,188.17,9.18877639]
[1730964609169,1.226,188.25,188.21,2.6553]
[1730964609373,1.226,188.25,188.21,9.18817639]
[1730964610061,1.226,188.25,188.22,2.6552]
[1730964610266,6.53287639,188.28,188.22,2.6552]
[1730964611373,6.53287639,188.28,188.23,6.53287639]
[1730964612074,6.53287639,188.28,188.22,6.53287639]
[1730964612276,9.18727639,188.28,188.22,6.53287639]
[1730964612665,6.53287639,188.25,188.21,2.82]
[1730964612868,6.53287639,188.23,188.17,2.82]
[1730964613068,6.53287639,188.23,188.16,2.82]
[1730964613263,6.53287639,188.23,188.16,9.35287639]
[1730964613477,6.53287639,188.21,188.16,9.35287639]
[1730964614476,6.53287639,188.21,188.16,6.53287639]
[1730964615377,9.18797639,188.23,188.16,6.53287639]
[1730964615577,6.53287639,188.23,188.16,6.53287639]
[1730964618774,3.0,188.46,188.2,6.53287639]
[1730964619081,9.92816254,188.33,188.2,2.82]
[1730964619282,6.53287639,188.29,188.23,6.53287639]
[1730964619779,6.53287639,188.29,188.23,9.18787639]
[1730964620378,6.53287639,188.29,188.24,2.6549]
[1730964620779,6.53287639,188.31,188.25,6.53287639]
[1730964621184,6.53287639,188.34,188.27,6.53287639]
[1730964621579,6.53287639,188.34,188.29,6.53287639]
[1730964622290,2.5039,188.37,188.29,6.53287639]
[1730964622490,9.03677639,188.37,188.31,6.53287639]
[1730964623282,6.53287639,188.35,188.3,2.82]
[1730964624384,6.53287639,188.33,188.25,2.6548]
[1730964624588,6.53287639,188.33,188.27,6.53287639]
[1730964625388,6.53287639,188.32,188.27,6.53287639]
[1730964625592,2.5039,188.37,188.27,6.53287639]
[1730964625780,6.53287639,188.34,188.29,6.53287639]
[1730964626378,2.5039,188.37,188.29,6.53287639]
[1730964626579,6.53287639,188.35,188.29,9.18697639]
[1730964628690,6.53287639,188.35,188.28,6.53287639]
[1730964628897,6.53287639,188.33,188.26,9.35287639]
[1730964629399,6.53287639,188.33,188.26,12.00747639]
[1730964630084,2.5039,188.37,188.28,6.53287639]
[1730964630283,6.53287639,188.35,188.29,2.6542]
[1730964630794,6.53287639,188.35,188.29,2.52606848]
[1730964632083,2.5039,188.37,188.29,2.52606848]
[1730964632289,6.53287639,188.36,188.3,6.53287639]
[1730964632495,6.53287639,188.36,188.31,2.82]
[1730964632994,2.5039,188.37,188.31,2.82]
[1730964633195,6.53287639,188.35,188.31,2.82]
[1730964636288,9.03677639,188.37,188.32,6.53287639]
[1730964636598,1.1946,188.38,188.31,5.4739]
[1730964636599,6.53287639,188.38,188.33,6.53287639]
[1730964636997,3.8818,188.44,188.31,2.82]
[1730964637196,3.8818,188.44,188.35,6.53287639]
[1730964637494,6.53287639,188.42,188.36,2.82]
[1730964641702,6.53287639,188.4,188.36,2.82]
[1730964642103,6.53287639,188.4,188.35,2.82]
[1730964644998,6.53287639,188.38,188.23,1.327433]
[1730964645208,6.53287639,188.38,188.32,6.53287639]
[1730964645405,6.53287639,188.36,188.33,2.82]
[1730964645602,6.53287639,188.36,188.32,6.53287639]
[1730964646103,6.53287639,188.36,188.32,9.35287639]
[1730964646400,6.53287639,188.36,188.32,2.82]
[1730964647493,6.53287639,188.38,188.32,2.82]
[1730964647798,6.53287639,188.38,188.32,9.35287639]
[1730964648194,2.6523,188.43,188.34,6.53287639]
[1730964648396,6.53287639,188.41,188.36,6.53287639]
[1730964648593,6.53287639,188.41,188.37,2.82]
[1730964652905,6.53287639,188.39,188.36,2.82]
[1730964653105,6.53287639,188.38,188.36,2.82]
[1730964653300,3.8818,188.44,188.36,2.82]
[1730964653608,2.6528,188.4,188.36,2.82]
[1730964654603,2.6528,188.39,188.36,2.82]
[1730964655609,6.53287639,188.37,188.36,2.82]
[1730964657914,6.53287639,188.39,188.36,2.82]
[1730964660715,6.53287639,188.37,188.36,2.82]
[1730964664017,6.53287639,188.37,188.34,2.82]
[1730964665615,2.6527,188.4,188.34,2.82]
[1730964665815,6.53287639,188.37,188.34,2.82]
[1730964672721,3.8818,188.44,188.34,2.82]
[1730964672915,6.53287639,188.4,188.34,2.82]
[1730964673123,6.53287639,188.4,188.35,2.6534]
[1730964674323,2.6523,188.43,188.35,2.6534]
[1730964674528,6.53287639,188.39,188.35,2.6534]
[1730964675323,6.53287639,188.39,188.34,5.4735]
[1730964677825,6.53287639,188.39,188.34,12.00637639]
[1730964680022,6.53287639,188.41,188.34,12.00637639]
[1730964680225,3.8818,188.44,188.36,6.53287639]
[1730964680431,6.53287639,188.41,188.36,6.53287639]
[1730964682126,6.53287639,188.41,188.35,6.53287639]
[1730964682530,6.53287639,188.41,188.35,9.18617639]
[1730964682724,6.53287639,188.41,188.35,2.6533]
[1730964682930,6.53287639,188.41,188.35,9.18617639]
[1730964683725,6.53287639,188.41,188.34,2.82]
[1730964684032,6.53287639,188.41,188.35,9.35287639]
[1730964684530,6.53287639,188.41,188.35,2.82]
[1730964684731,6.53287639,188.41,188.36,6.53287639]
[1730964684931,6.53287639,188.41,188.35,2.82]
[1730964685136,6.53287639,188.41,188.36,9.18607639]
[1730964685324,6.53287639,188.41,188.36,2.6532]
[1730964685528,3.8818,188.44,188.36,9.18607639]
[1730964685731,6.53287639,188.41,188.36,9.18607639]
[1730964687021,6.53287639,188.41,188.36,2.6532]
[1730964687220,6.53287639,188.41,188.36,9.18607639]
[1730964687641,3.8818,188.44,188.35,2.82]
[1730964687642,3.8818,188.44,188.38,6.53287639]
[1730964687827,6.53287639,188.43,188.38,6.53287639]
[1730964688321,6.53287639,188.43,188.39,2.6528]
[1730964688523,6.53287639,188.43,188.4,2.8]
[1730964688936,1.2766,188.44,188.4,2.8]
[1730964689138,1.2766,188.44,188.4,9.33287639]
[1730964689935,1.2766,188.44,188.4,2.8]
[1730964690128,1.2766,188.44,188.4,9.33287639]
[1730964690833,6.53287639,188.46,188.41,2.6525]
[1730964691235,6.53287639,188.46,188.41,9.18537639]
[1730964692730,6.53287639,188.48,188.42,9.18517639]
[1730964692930,6.53287639,188.48,188.44,6.53287639]
[1730964693237,6.53287639,188.48,188.45,2.8]
[1730964694140,6.53287639,188.49,188.45,2.8]
[1730964694727,1.2,188.5,188.45,9.33287639]
[1730964694930,7.73287639,188.5,188.45,11.98477639]
[1730964695838,7.73287639,188.5,188.46,2.6518]
[1730964696137,7.73287639,188.5,188.47,2.8]
[1730964696327,6.53287639,188.48,188.47,2.8]
[1730964697331,1.2,188.5,188.47,2.8]
[1730964697634,7.73287639,188.5,188.47,2.8]
[1730964699330,7.73287639,188.5,188.46,2.8]
[1730964699529,7.73287639,188.5,188.41,2.6525]
[1730964699725,6.53287639,188.48,188.43,6.53287639]
[1730964700733,6.53287639,188.47,188.42,9.33287639]
[1730964701034,6.53287639,188.47,188.42,2.8]
[1730964701232,6.53287639,188.47,188.42,9.33287639]
[1730964702135,9.18427639,188.49,188.42,2.8]
[1730964702335,9.18427639,188.49,188.43,6.53287639]
[1730964703239,6.53287639,188.49,188.43,6.53287639]
[1730964704838,6.53287639,188.48,188.42,5.4524]
[1730964705045,6.53287639,188.48,188.42,11.98527639]
[1730964705339,6.53287639,188.51,188.46,6.53287639]
[1730964705543,6.53287639,188.51,188.47,2.8]
[1730964706138,6.53287639,188.52,188.47,2.8]
[1730964707742,9.18387639,188.52,188.47,2.8]
[1730964709043,6.53287639,188.52,188.47,2.8]
[1730964714952,1.2265,188.53,188.47,2.8]
[1730964715141,7.75937639,188.53,188.47,2.8]
[1730964715342,7.75937639,188.53,188.48,6.53287639]
[1730964717450,1.2265,188.53,188.47,2.8]
[1730964717753,1.2265,188.53,188.48,6.53287639]
[1730964719157,1.2265,188.53,188.47,2.8]